Cogmind - Beta 16.1 @@@ ROGUE MODE // 2026.04.08 @ 21:03:37 Player: Maelyn Result: Destroyed by D-53 Grenadier with Mini Grenade Launcher Performance ------------- Evolutions (0) 0 Regions Visited (2) 400 Robots Destroyed (22) 110 Value Destroyed (276) 276 Prototype IDs (0) 0 Alien Tech Used (0) 0 Bonus (85) 85 TOTAL SCORE: 871 Bonus ------- Follower Combat Kills 85 Cogmind --------- Core Integrity 0/250 Matter 300/300 Energy 248/250 System Corruption 0% Temperature Cool (0) Movement Rolling (140) Ox4 Location -10/Mines Parts ------- > --- POWER (1) -------- Ion Engine > --- PROPULSION (2) --- Wheel Wheel > --- UTILITY (2) ------ Huge Storage Unit > --- WEAPON (2) ------- Light Assault Rifle Light Assault Rifle > --- INVENTORY (25) --- Ion Engine Heat Sink Improved Heat Sink Sensor Array Seismic Detector Assault Rifle Peak State ------------ > --- POWER ------------ Ion Engine > --- PROPULSION ------- Light Treads Light Treads > --- UTILITY ---------- Small Storage Unit Seismic Detector > --- WEAPON ----------- Medium Laser Small Laser > --- INVENTORY -------- Ion Engine Aluminum Leg Aluminum Leg Assault Rifle [Rating: 7] Favorites ----------- Power Ion Engine Engine Ion Engine Propulsion Light Treads Treads Light Treads Leg Aluminum Leg Wheel Wheel Utility Seismic Detector Device Seismic Detector Storage Huge Storage Unit Weapon Light Assault Rifle Energy Gun Small Laser Ballistic Gun Light Assault Rifle Launcher Grenade Launcher Build | -11 -10 -10 ------- Run | Yrd Mat Min Slots Evolved . | . . . Power . | . . . Propulsion . | . . . Utility . | . . . Weapon . | . . . Parts Attached 18 | 7 3 8 Power 3 | 1 . 2 Engine 3 | 1 . 2 Core . | . . . Reactor . | . . . Propulsion 6 | 2 2 2 Treads 2 | 2 . . Leg 2 | . 2 . Wheel 2 | . . 2 Hover . | . . . Flight . | . . . Utility 3 | 2 1 . Device 1 | 1 . . Storage 2 | 1 1 . Processor . | . . . Hackware . | . . . Protection . | . . . Artifact . | . . . Weapon 6 | 2 . 4 Energy Gun 2 | 2 . . Energy Cannon . | . . . Ballistic Gun 3 | . . 3 Ballistic Cannon . | . . . Launcher 1 | . . 1 Special Weapon . | . . . Impact Weapon . | . . . Slashing Weapon . | . . . Piercing Weapon . | . . . Special Melee Weapon . | . . . Unidentified Prototypes . | . . . Parts Lost 7 | . . 7 Power 1 | . . 1 Propulsion 1 | . . 1 Utility 1 | . . 1 Weapon 4 | . . 4 Highest Loss Streak 4 | . . 4 To Critical Strikes . | . . . Average Backups 4 | 3 6 4 Power . | . 1 . Propulsion 1 | 1 1 1 Utility 1 | . 1 2 Weapon . | 1 2 . Tool/Special . | . . . Unused Backups 5 | . . 5 Power . | . . . Propulsion . | . . . Utility 4 | . . 4 Weapon 1 | . . 1 Tool/Special . | . . . Average Slot Usage (%) 89 | . 86 91 Engine 12 | . 10 13 Treads 9 | . 16 6 Leg 2 | . 7 1 Wheel 9 | . . 13 Device 14 | . 14 14 Storage 14 | . 14 14 Energy Gun 7 | . 23 . Ballistic Gun 14 | . . 20 Launcher 3 | . . 4 Peak Build Rating 7 | 7 7 7 Average Rating 6 | 4 6 6 On Entrance 4 | . 7 7 Avg Prop Armor Cover (%) . | . . . Naked Turns . | . . . Heaviest Build 91 | 14 89 91 Greatest Support 40 | 40 40 20 Greatest Overweight (x) 26 | 1 26 4 Average Overweight (x) 2 | . 1 4 Largest Inventory Capacity 25 | 8 25 25 Average Capacity 21 | 7 16 25 Most Carried 11 | 5 11 6 Average Carried 4 | 3 6 4 Final Capacity 25 | 8 25 25 Final Carried 6 | 4 6 6 Class Distribution -------------------- 68% | Mutant 31% | Scavenger-Mutant Dominant Class ---------------- Mutant | -10/Materials Mutant | -10/Mines Resources | -11 -10 -10 ----------- Run | Yrd Mat Min Matter Collected 509 | 141 . 368 Remotely . | . . . Salvage Created 510 | 78 32 400 Parts 40 | 8 4 28 Haulers Intercepted . | . . . Recyclers Shooed 1 | 1 . . Parts Field Recycled . | . . . Retrieved Matter . | . . . Parts Self-Destructed . | . . . Prevented . | . . . Parts Restored . | . . . Kills | -11 -10 -10 ------- Run | Yrd Mat Min Combat Hostiles Destroyed 14 | . 2 12 Guns 9 | . 2 7 AOE 5 | . . 5 Classes Destroyed 7 | 1 1 5 Worker 2 | . . 2 Builder 1 | . . 1 Tunneler 5 | 3 . 2 Recycler 1 | . . 1 Swarmer 10 | . 2 8 Grunt 3 | . . 3 Assembled 1 | . . 1 Best Kill Streak 4 | 2 2 4 Combat Bots Only 3 | . 2 3 Max Kills in Single Turn 3 | 1 1 3 Gunslinging . | . . . Exploded 2 | . . 2 Melee . | . . . Uniques/NPCs Destroyed . | . . . Combat | -11 -10 -10 -------- Run | Yrd Mat Min Hostile Shots Fired 151 | . 47 104 Missed 40 | . 15 25 Hits 111 | . 32 79 Melee 2 | . . 2 Projectile 109 | . 32 77 AOE 1 | . . 1 Damage Taken 1057 | . 255 802 Core 253 | . 54 199 Absorbed by Shields . | . . . Core Remaining (%) 100 | 100 . . Volleys Fired 57 | 9 5 43 Largest 2 | 2 2 2 Hottest 90 | 90 90 90 Shots Fired 98 | 18 10 70 Gun 94 | 18 10 66 Cannon . | . . . Launcher 4 | . . 4 Special . | . . . Kinetic 55 | . . 55 Thermal 39 | 18 10 11 Explosive 4 | . . 4 Electromagnetic . | . . . Robot Hit Streak 7 | 5 2 7 Robot Miss Streak 4 | 3 4 2 Penetration Max . | . . . Secondary Targets 1 | . . 1 Max Gunslinging Chain 1 | . . 1 Shots Hit Robots 60 | 11 3 46 Core Hits 37 | 4 2 31 Critical Kills . | . . . Critical Parts Destroyed . | . . . Critical Strikes . | . . . Melee Attacks . | . . . Impact . | . . . Slashing . | . . . Piercing . | . . . Sneak Attacks . | . . . Combat Hostiles . | . . . Follow-up Attacks . | . . . Damage Inflicted 851 | 126 37 688 Guns 565 | 126 37 402 Cannons . | . . . Explosions 286 | . . 286 Melee . | . . . Ramming . | . . . Kinetic 312 | . . 312 Thermal 253 | 126 37 90 Explosive 286 | . . 286 Electromagnetic . | . . . Impact . | . . . Slashing . | . . . Piercing . | . . . Highest Corruption . | . . . Average Corruption . | . . . Corruption Purged . | . . . Corruption Blocked . | . . . Overload Shots . | . . . Overflow Damage . | . . . Projectiles . | . . . Explosions . | . . . Melee . | . . . Knockbacks . | . . . Impact . | . . . Kinetic . | . . . Secondary . | . . . Self-Inflicted Damage 24 | . . 24 Shots 1 | . . 1 Rammed . | . . . Targets Rammed . | . . . Kicked . | . . . Crushed . | . . . Highest Temperature 210 | 210 150 168 Average Temperature 81 | 89 77 74 Received Heat Transfer 186 | . . 186 Siege Activations . | . . . Martial Activations . | . . . Shielding Activations . | . . . Robots Disrupted . | . . . Combat Hostiles . | . . . Robots Corrupted . | . . . Combat Hostiles . | . . . Parts Fried . | . . . Impact Corruptions . | . . . Robots Melted . | . . . Combat Hostiles . | . . . Parts Melted 2 | . . 2 Heat Transferred 658 | 323 87 248 Parts Sabotaged . | . . . Parts Stolen . | . . . Parts Stripped . | . . . Power Chain Reactions . | . . . Alert | -11 -10 -10 ------- Run | Yrd Mat Min Maximum Alert Level . | . . . Low Security (%) 100 | 100 100 100 Level 1 . | . . . Level 2 . | . . . Level 3 . | . . . Level 4 . | . . . Level 5 . | . . . High Security . | . . . Max Security . | . . . Peak Influence 165 | 10 40 165 Initial 11 | . 3 11 Average 44 | 1 1 68 Influence Increases 480 | 15 40 425 Destroy 0b10 Robot/C 320 | . 40 280 Destroy 0b10 Robot/NC 45 | 15 . 30 Destroy Leader 60 | . . 60 Allied During Kill 10 | . . 10 Destroy Structure 30 | . . 30 Lose Combat Pursuer 15 | . . 15 Influence Decreases 480 | 10 15 455 Entered New Map 21 | . 2 19 Time Decay 364 | 10 13 341 Lost Part 55 | . . 55 Lost Ally 40 | . . 40 Squads Dispatched . | . . . Investigation . | . . . Extermination . | . . . Reinforcement . | . . . Assault . | . . . Garrison . | . . . Intercept . | . . . Searches Triggered . | . . . Construction Impeded . | . . . Haulers Reinforced . | . . . Active Scanning Responses . | . . . Cargo Convoy Interrupts . | . . . Stealth | -11 -10 -10 --------- Run | Yrd Mat Min Distress Signals 1 | . . 1 Communications Jammed . | . . . Distress Signals . | . . . Times Spotted 22 | . 3 19 Peak Tracking Total 4 | . 3 4 Tactical Retreats 2 | . . 2 Traps | -11 -10 -10 ------- Run | Yrd Mat Min Traps Triggered 3 | . 3 . Indirectly . | . . . Trap Hack Attempts . | . . . Triggered . | . . . Disarmed . | . . . Reprogrammed . | . . . Reused . | . . . Traps Extracted . | . . . Installed . | . . . Triggered . | . . . Machines | -11 -10 -10 ---------- Run | Yrd Mat Min Machines Disabled . | . . . Max in Single Turn . | . . . Machines Repaired . | . . . Machines Dismantled . | . . . Machines Sabotaged . | . . . Overloaded Fab Kills . | . . . Hacking | -11 -10 -10 --------- Run | Yrd Mat Min Machines Accessed . | . . . Terminals . | . . . Fabricators . | . . . Repair Stations . | . . . Recycling Units . | . . . Scanalyzers . | . . . Garrison Access . | . . . Total Hacks . | . . . Successful . | . . . Failed . | . . . Catastrophic . | . . . Database Lockouts . | . . . Manual . | . . . Terminals . | . . . Fabricators . | . . . Repair Stations . | . . . Recycling Units . | . . . Scanalyzers . | . . . Garrison Access . | . . . Terminal Hacks . | . . . Fabricator Hacks . | . . . Repair Station Hacks . | . . . Recycling Unit Hacks . | . . . Scanalyzer . | . . . Garrison Access Hacks . | . . . Unauthorized Hacks . | . . . Terminals . | . . . Fabricators . | . . . Repair Stations . | . . . Recycling Units . | . . . Scanalyzers . | . . . Garrison Access . | . . . Data Cores Recovered . | . . . Used . | . . . Hacking Detections . | . . . Full Trace Events . | . . . Feedback Events . | . . . Feedback Blocked . | . . . Robot Schematics Acquired . | . . . Robots Built . | . . . Authchips . | . . . Time . | . . . Total Robot Build Rating . | . . . Part Schematics Acquired . | . . . Parts Built . | . . . Authchips . | . . . Time . | . . . Total Part Build Rating . | . . . Part Studies Acquired . | . . . Parts Repaired . | . . . Time . | . . . Parts Recycled . | . . . Recycled Matter . | . . . Retrieved Matter . | . . . Retrieved Components . | . . . Parts Scanalyzed . | . . . Part Schematics Acquired . | . . . Parts Damaged . | . . . Bothacking | -11 -10 -10 ------------ Run | Yrd Mat Min Used RIF Installer . | . . . Robots Hacked . | . . . Non-combat . | . . . Combat . | . . . Robot Hacks Applied . | . . . Relay Couplers Released . | . . . Fabnet Peak Effective % . | . . . Robots Rewired . | . . . Allies Hacked . | . . . Hacks Repelled . | . . . Allies | -11 -10 -10 -------- Run | Yrd Mat Min Total Allies 3 | . . 3 Largest Group 3 | . . 3 Highest-Rated Group 40 | . . 40 Highest-Rated Ally 16 | . . 16 Total Orders . | . . . Ally Attacks 23 | . . 23 Total Damage 297 | . . 297 Kills 3 | . . 3 Allies Corrupted . | . . . Allies Melted . | . . . Intel | -11 -10 -10 ------- Run | Yrd Mat Min Active Infowar (turns) 1140 | 9 333 798 Seismic 1140 | 9 333 798 Robot Analysis Total . | . . . Derelict Logs Recovered 1 | . . 1 Drone Launches . | . . . Drone Recoveries . | . . . Exploration | -11 -10 -10 ------------- Run | Yrd Mat Min Turns Passed 1249 | 118 333 798 Spaces Moved 512 | 63 134 315 Core 27 | 25 2 . Treads 220 | 38 114 68 Legs 18 | . 18 . Wheels 247 | . . 247 Hover . | . . . Flight . | . . . Fastest Speed 50 | 50 160 140 Average Speed 205 | 118 227 213 Slowest Speed 1350 | 160 1350 480 Overloaded Moves . | . . . Propulsion Burnouts . | . . . Robots Hopped . | . . . Potential Cave-ins . | . . . Cave-ins Triggered . | . . . Exploration Rate (%) 29 | 4 28 55 Regions Visited 2 Branch Regions 1 Pre-discovered Areas 1 | . . 1 Known Exits Taken . | . . . Unknown Exits Taken 2 | 1 1 . Scrap Searched 2 | . . 2 Spaces Dug . | . . . Terrain Destroyed 38 | . . 38 Melee . | . . . Projectile . | . . . AOE 38 | . . 38 Terrain Rammed . | . . . Walls Destroyed . | . . . Machines Disabled . | . . . Actions | -11 -10 -10 --------- Run | Yrd Mat Min Total 623 | 87 154 382 Wait 5 | . . 5 Move 510 | 62 133 315 Hop . | . . . Pick Up 24 | 9 7 8 Fast Attach 3 | 2 1 . Attach 16 | 5 5 6 Detach . | . . . Swap 5 | . 2 3 Drop 3 | . 1 2 Fire 57 | 9 5 43 Melee . | . . . Ram . | . . . Kick . | . . . Crush . | . . . Escape Stasis . | . . . Rewire . | . . . Trap . | . . . Miscellaneous . | . . . Route ------- -11/Scrapyard -10/Materials -10/Mines History --------- Turn | Location | Event 5 | -11/Scrapyard | Discovered new exit (range 15) 119 | -11/Scrapyard | Entered Materials 312 | -10/Materials | Build established: Mutant 377 | -10/Materials | Discovered new exit (range 15) 452 | -10/Materials | Entered Mines 480 | -10/Mines | Core integrity fell below 50% 525 | -10/Mines | Lost 4 parts (1p1n2w) 914 | -10/Mines | Assembled infested the area 925 | -10/Mines | Core integrity fell below 20% 990 | -10/Mines | Assisted by bots powering up and referring to "LRC-V3" 1036 | -10/Mines | Learned 2 Materials zone layouts 1160 | -10/Mines | Build established: Scavenger-Mutant 1204 | -10/Mines | Learned location of Storage (-9) 1250 | -10/Mines | Destroyed by D-53 Grenadier with Mini Grenade Launcher Last Messages --------------- 01076_ G-47 Trooper heat spikes uncontrollably. 01076_ G-47 Trooper overheating. 01076_ G-47 Trooper destroyed. 01077_ K-01 Serf collects debris. 01080_ Acquired 8 matter. 01080_ K-01 Serf collects debris. 01198_ T-07 Excavator destroyed. 01200_ Acquired 2 matter. 01204_ A derelict emerges from the shadows: "Are any of them following you? I'm here trying to lose some heat after our second raid on Storage failed. Whatever you do stay away from that place, they've tightened security following our previous successful raids." World map updated: -9/Storage. 01204_ Acquired Seismic Detector. 01206_ 4T-6FU(g): "We scattered so the Unaware couldn't effectively use their advantage in numbers, and I suggest you do the same." 01206_ 4T-6FU(g) slips back into the shadows. 01250_ Seismic Detector destroyed. Map ----- +----------------------------------------------------+ | ??# """ #??????????##### ## # ##?????????????? | | ??# """ #?????######### ##### ##?????????????# | | ??# #?????# % ## #### """ ?????# | | ??# """=#?????# ## ### % """ ?????# | | ??# """ #######! ## #?## #### ### #???## | | ??# """ = ##% ## #?### = ## # ##?????????## | | ??# #### ## ## #??## ## ### ###????????# | | ??# | #??# ## ##?##**###### #######?## | | ??#T## ##??#### ## ### ##?# ### | | ??##?#!##?????# # #?# ### ## | | ?????# #?????#*!## #?## #?# | | ????# #????#* #### ##??### ##?##### | | ????# #???#**#??##### ##?????####??????## | | ????# #??# #??????####?????????????????# | | ????# #?# #???????????????????????????# | | ????# ##?# ##?????????????????????????## | | ????## ##??# """ #?????????????????????????### | | ?????####???# """ ######?????################# | | ????????????# """ d ##????# | | ????????????# #????# ###### ######## | | ???????????? ? ##### #????# #??????? | | ???????????? ????## = #????# #??##### | | ???????????# ??????# #####*##????# #### | | ????????????????????# ?????#=#?????# # | | ?????????????????????? #?????#%#?????# """" # | | ???????????????????????#@#?????#!#?????# """" # | | ???????????????????????# #####?# #?????# """" | | ???????????????????????# #?# #?????## | | ???????????????????????##### ### #??????#### | | ???????????????????????????# #?????????## | | ???????????????????????????##### #??????????# | | ???????????????????????????????# #??????????### | | ?????????????????????????####### #????????????### | | ????????????????????????## ##?????????????? | | ????????????????????????# #?????????????? | | ????????????????????????# ##????????????? | | ????????????????????????## #????????????? | | ?????????????????????????### #????????????? | | ???????????????????????????## #????????????? | | ????????????????????????????## ##????????????? | | ?????????????????????????????######?????????????? | | ????????????????????????????????????????????????? | | ????????????????????????????????????????????????? | | ????????????????????????????????????????????????? | | | | | | | | | | | | | +----------------------------------------------------+ Best States ------------- Heat Dissipation 25 Energy Generation 10 Energy Capacity 250 Matter Stores 300 Matter Capacity 300 Sight Range 16 Terrain Scan Density 10 Evasion (%) 50 Recoil Reduction 2 Item Schematics ----------------- None Robot Schematics ------------------ None Fabricated ------------ Nothing Repaired ---------- Nothing Studied --------- None Alien Tech Used ----------------- None Achievements -------------- None Challenges ------------ None Game ------ Seed EtherialSmallParser Manual? 0 Play Time 00:10:39 Cumulative 23.2 hours Start 2026.04.08 @ 20:52:05 End 2026.04.08 @ 21:03:37 Sessions 1 Manual Loads 0 Difficulty Rogue Special Mode None Game No. 67 Rogue 67 Adventurer 0 Explorer 0 Win Type - Total 0 Types 0/0/0/0/0/0/0/0/0/0 Lore% 10 Gallery% 21 Achievement% 12 Wizard Run 0 Options --------- Layout 1 ASCII 0 Keyboard 0 Movement Mouse Keybinds 0 Fullscreen 0 Font 16/TamsynBold Map View 64x42 Zoom Use 0% Tactical HUD 1 Map Filters NONE Filters NONE Steam 1 RUN: 32eff79b-9fc9-4236-8a4b-152f04e01bcf